bitfinex-derivatives/quotes_ETHF0:USTF0_20250116
["timestamp","ask_amount","ask_price","bid_price","bid_amount"]
[1737008204662,0.59296,3373.4,3373.3,3.2078]
[1737008204862,0.9586,3373.5,3373.2,0.4433]
[1737008205067,0.59298,3373.3,3373.2,0.4433]
[1737008205666,0.9586,3373.5,3373.2,0.4433]
[1737008205860,0.59297,3373.4,3373.2,0.4433]
[1737008207469,0.59298,3373.3,3373.2,0.4433]
[1737008210462,0.59303,3373.0,3372.9,3.2078]
[1737008210674,0.59303,3373.0,3372.9,4.3628]
[1737008215273,0.59303,3373.0,3372.9,1.155]
[1737008219380,1.07743,3373.0,3372.9,1.155]
[1737008221582,2.13281721,3373.0,3372.9,1.155]
[1737008231586,1.07743,3373.0,3372.9,1.155]
[1737008231792,1.07743,3373.0,3372.9,2.21038721]
[1737008232392,1.07743,3373.0,3372.9,1.05538721]
[1737008234189,0.59314,3372.4,3372.2,10.672]
[1737008234393,0.59313,3372.4,3372.3,1.52878721]
[1737008234792,0.59313,3372.4,3372.3,0.4734]
[1737008249103,1.64851721,3372.4,3372.2,0.4783]
[1737008249403,1.04425,3372.3,3372.2,0.4783]
[1737008251005,0.4511,3372.3,3372.1,0.4758]
[1737008251309,0.59317,3372.2,3372.1,0.4758]
[1737008255804,1.05538721,3372.2,3371.8,1.51818721]
[1737008256006,0.59322,3371.9,3371.8,0.4628]
[1737008256202,0.4495,3372.1,3371.8,1.51818721]
[1737008256410,0.59318,3372.2,3372.0,1.64858721]
[1737008256710,0.59318,3372.2,3372.1,1.05538721]
[1737008256908,0.59318,3372.2,3372.1,41.85538721]
[1737008257111,0.59318,3372.2,3372.1,42.29868721]
[1737008257611,0.59314,3372.4,3372.2,0.59316]
[1737008257911,0.59314,3372.4,3372.3,1.49998721]
[1737008258108,3.80091,3372.6,3372.4,0.59313]
[1737008258309,3.6573,3373.0,3372.7,0.59308]
[1737008258605,3.2078,3373.0,3372.9,1.05538721]
[1737008259002,3.2078,3373.0,3372.9,1.54198721]
[1737008259500,3.2078,3373.0,3372.9,2.13503721]
[1737008259704,3.2078,3373.0,3372.9,2.02288721]
[1737008259904,3.80083,3373.0,3372.9,2.02288721]
[1737008260314,3.80083,3373.0,3372.9,0.4866]
[1737008260608,3.80083,3373.0,3372.9,1.54198721]
[1737008261009,3.2078,3373.0,3372.9,1.54198721]
[1737008261507,3.2078,3373.0,3372.9,2.13503721]
[1737008263204,0.59302,3373.1,3372.9,2.13503721]
[1737008263609,0.593,3373.2,3372.9,2.13503721]
[1737008263813,0.59302,3373.1,3372.9,1.54198721]
[1737008264110,0.59302,3373.1,3372.9,2.13503721]
[1737008264703,0.59302,3373.1,3372.9,1.54198721]
[1737008264906,0.59302,3373.1,3372.9,2.13502721]
[1737008265410,0.593,3373.2,3372.9,2.13502721]
[1737008266310,0.593,3373.2,3372.9,1.54198721]
[1737008266511,0.593,3373.2,3372.9,2.13502721]
[1737008266712,0.59298,3373.3,3373.1,1.05538721]
[1737008267012,0.59299,3373.2,3373.1,1.05538721]
[1737008268505,0.59301,3373.1,3373.0,0.4753]
[1737008269205,1.05538721,3373.4,3373.0,0.4753]
[1737008269710,0.593,3373.2,3373.0,0.4753]
[1737008270816,0.59301,3373.1,3373.0,0.4753]
[1737008271109,0.593,3373.2,3373.0,0.4753]
[1737008271313,0.593,3373.2,3373.1,1.05538721]
[1737008277624,0.59308,3372.7,3372.6,5.41618721]
[1737008278116,1.05538721,3373.3,3372.6,5.41618721]
[1737008278322,0.59308,3372.8,3372.6,4.3608]
[1737008279215,0.59308,3372.8,3372.7,1.05538721]
[1737008280316,0.59313,3372.4,3372.3,3.2078]
[1737008285923,0.59313,3372.4,3372.3,4.26318721]
[1737008287525,0.59313,3372.4,3372.3,1.05538721]
[1737008290627,0.4469,3372.5,3372.3,1.05538721]
[1737008290833,1.04002,3372.5,3372.4,0.4666]
[1737008291121,0.4469,3372.5,3372.4,0.9473]
[1737008292626,1.04002,3372.5,3372.4,0.9473]
[1737008292925,0.4469,3372.5,3372.4,0.9473]
[1737008293126,1.04002,3372.5,3372.4,0.9473]
[1737008294233,0.4469,3372.5,3372.4,0.9473]
[1737008294619,1.04002,3372.5,3372.4,0.9473]
[1737008295521,1.04002,3372.5,3372.4,0.4807]
[1737008295824,0.59313,3372.4,3372.3,1.05538721]
[1737008312034,0.59313,3372.4,3372.3,41.85538721]
[1737008322244,0.59313,3372.4,3372.3,40.8]
[1737008326652,0.59313,3372.4,3372.3,45.44014081]
[1737008328558,0.59313,3372.4,3372.3,40.8]
[1737008329552,0.59313,3372.4,3372.3,45.44014081]
[1737008329957,0.59313,3372.4,3372.3,4.64014081]
[1737008330559,0.59315,3372.3,3372.2,6.24374081]
[1737008332460,0.59315,3372.3,3372.2,5.09074081]
[1737008333057,3.80095,3372.3,3372.2,4.64014081]
[1737008333755,0.59317,3372.2,3372.1,4.64014081]
[1737008333955,2.09495721,3372.2,3372.1,4.64014081]
[1737008334769,0.59324,3371.8,3371.7,4.64014081]
[1737008334959,0.59323,3371.9,3371.7,4.64014081]
[1737008335163,0.59323,3371.9,3371.8,1.05538721]
[1737008336761,0.59319,3372.1,3371.8,1.64861721]
[1737008336961,0.59319,3372.1,3372.0,1.05538721]
[1737008337269,1.03958,3372.2,3372.0,1.05538721]
[1737008337567,3.2078,3372.3,3372.1,0.4893]
[1737008337767,3.2078,3372.3,3372.1,0.9349]
[1737008337968,0.59317,3372.2,3372.1,0.9349]
[1737008341768,0.5932,3372.1,3371.8,5.23338081]
[1737008341969,0.5932,3372.1,3371.9,1.05538721]
[1737008343267,4.26318721,3372.3,3371.8,0.4695]
[1737008343464,0.59322,3371.9,3371.8,5.10964081]
[1737008343860,1.52542,3371.9,3371.8,5.10964081]
[1737008344867,0.59326,3371.7,3371.6,4.64014081]
[1737008345865,0.59328,3371.6,3371.5,3.6542]
[1737008346065,0.59329,3371.5,3371.4,4.64014081]
[1737008346372,1.64867721,3371.5,3371.4,4.64014081]
[1737008347371,4.85647721,3371.5,3371.4,4.64014081]
[1737008347566,1.05538721,3371.5,3371.1,41.2585]
[1737008347773,0.59335,3371.2,3371.1,41.2585]
[1737008348276,0.59335,3371.2,3371.1,0.4585]
[1737008349167,0.59338,3371.0,3370.9,6.64479345]
[1737008349674,0.59338,3371.0,3370.9,2.00465264]
[1737008350077,0.59329,3371.6,3371.3,0.59333]
[1737008350271,0.59328,3371.6,3371.5,1.05538721]
[1737008350469,0.9493,3371.7,3371.4,0.4772]
[1737008350769,0.59334,3371.3,3371.1,1.05538721]
[1737008351073,0.59332,3371.4,3371.1,1.64874721]
[1737008351774,0.59329,3371.5,3371.3,1.05538721]
[1737008351978,0.59329,3371.5,3371.4,0.4584]
[1737008352770,0.59329,3371.5,3371.4,41.2584]
[1737008353175,1.4366,3371.7,3371.4,41.2584]
[1737008353367,0.59328,3371.6,3371.4,41.2584]
[1737008353569,2.02987,3371.7,3371.5,0.4428]
[1737008355568,1.4366,3371.7,3371.5,0.4428]
[1737008355876,1.64866721,3371.6,3371.5,0.4428]
[1737008356071,0.59334,3371.3,3371.1,3.2078]
[1737008356267,1.51035,3371.2,3371.1,3.2078]
[1737008356978,1.98865,3371.2,3371.1,3.2078]
[1737008358179,4.6031,3371.2,3370.9,41.26536543]
[1737008358368,0.59338,3371.0,3370.9,0.46536543]
[1737008365687,3.2078,3371.6,3370.9,1.05538721]
[1737008365889,0.5933,3371.5,3371.2,0.59334]
[1737008366083,0.5933,3371.5,3371.3,0.4894]
[1737008366285,4.26318721,3371.6,3371.3,41.2894]
[1737008366484,0.59331,3371.4,3371.3,41.2894]
[1737008367387,0.4908,3371.5,3371.3,41.2894]
[1737008367782,3.80108,3371.6,3371.3,41.2894]
[1737008368690,3.2078,3371.6,3371.3,41.88272]
[1737008368985,1.51917,3371.7,3371.3,41.88272]
[1737008369590,0.59328,3371.6,3371.3,41.2894]
[1737008369782,1.51917,3371.7,3371.3,41.88272]
[1737008370182,0.59329,3371.6,3371.3,41.2894]
[1737008371393,0.9259,3371.7,3371.3,41.2894]
[1737008371584,0.59329,3371.5,3371.3,41.2894]
[1737008371889,0.59329,3371.5,3371.3,0.4894]
[1737008374292,0.59328,3371.6,3371.3,0.4894]
[1737008374493,0.59331,3371.5,3371.3,0.4894]
[1737008375797,0.59331,3371.4,3371.3,0.4894]
[1737008375987,0.59335,3371.2,3371.0,0.4498]
[1737008376186,0.59335,3371.2,3371.1,0.4821]
[1737008377892,0.4634,3371.3,3371.1,0.4821]
[1737008378087,3.2078,3371.5,3371.1,0.4821]
[1737008378282,0.59332,3371.4,3371.1,1.07545]
[1737008378488,0.59332,3371.4,3371.2,40.8]
[1737008380197,0.59333,3371.3,3371.2,40.8]
[1737008380495,0.59332,3371.4,3371.2,40.8]
[1737008380993,0.59332,3371.4,3371.2,41.39334]
[1737008382898,0.59332,3371.4,3371.2,40.8]
[1737008383097,0.59332,3371.4,3371.1,1.07545]
[1737008383399,0.59332,3371.4,3371.2,0.59335]
[1737008383994,0.4664,3371.6,3371.1,41.2821]
[1737008384192,0.4664,3371.6,3371.2,0.4521]
[1737008384497,3.2078,3371.9,3371.5,0.59329]
[1737008384700,3.2078,3371.9,3371.7,0.59326]
[1737008384998,3.80103,3371.9,3371.7,0.59326]
[1737008385596,3.80103,3371.9,3371.6,1.54587]
[1737008385993,3.2078,3371.9,3371.6,0.9526]
[1737008386400,0.59325,3371.8,3371.6,1.54587]
[1737008386805,0.59325,3371.8,3371.6,0.9526]
[1737008388898,0.4468,3372.0,3371.6,0.9526]
[1737008389100,0.59326,3371.7,3371.6,0.9526]
[1737008389301,0.59326,3371.7,3371.6,2.00871095]
[1737008390707,0.59325,3371.8,3371.6,2.00871095]
[1737008391199,0.59331,3371.5,3371.3,3.2078]
[1737008391505,0.59331,3371.5,3371.3,3.6731]
[1737008391506,0.4673,3371.4,3371.3,3.6731]
[1737008391706,0.4673,3371.4,3371.3,4.26643]
[1737008392903,1.06061,3371.4,3371.3,0.4653]
[1737008393200,0.4908,3371.7,3371.3,0.4653]
[1737008393408,0.59323,3371.9,3371.6,0.59326]
[1737008393706,0.59323,3371.9,3371.8,1.05611095]
[1737008394006,0.59322,3372.0,3371.8,1.64935095]
[1737008394204,3.80099,3372.1,3371.9,1.64932095]
[1737008394995,0.59319,3372.1,3371.9,1.64932095]
[1737008395400,0.59319,3372.1,3371.9,0.59321]
[1737008396008,0.59319,3372.1,3371.9,1.04071]
[1737008396511,0.4873,3372.2,3371.9,0.4475]
[1737008396719,1.08048,3372.2,3372.0,0.5932]
[1737008396904,1.08048,3372.2,3371.9,1.04071]
[1737008397104,0.59315,3372.4,3372.2,0.59316]
[1737008397310,0.59315,3372.4,3372.3,0.9385]
[1737008397511,4.1554,3372.5,3371.7,3.2078]
[1737008397709,0.4444,3372.3,3371.8,0.9385]
[1737008397912,0.59322,3372.0,3371.8,0.9385]
[1737008398109,1.03592,3371.9,3371.8,0.9385]
[1737008398702,0.4427,3371.9,3371.8,0.9385]
[1737008398904,0.59327,3371.7,3371.5,4.64014081]
[1737008399203,0.4548,3371.8,3371.5,4.64014081]
[1737008399510,1.04805,3371.8,3371.5,0.59329]
[1737008399714,1.04805,3371.8,3371.4,5.11614081]
[1737008400005,0.4548,3371.8,3371.4,5.11614081]
[1737008400213,1.03593,3371.9,3371.7,0.59326]
[1737008400404,1.03593,3371.9,3371.4,5.11614081]
[1737008400605,0.59324,3371.8,3371.6,0.59327]
[1737008400905,0.4427,3371.9,3371.4,0.476]
[1737008401111,0.59328,3371.6,3371.4,0.476]
[1737008401411,0.59329,3371.5,3371.4,0.476]
[1737008402308,0.4493,3371.7,3371.4,0.476]
[1737008402513,0.59328,3371.6,3371.4,1.06931]
[1737008402709,1.04256,3371.7,3371.5,0.59329]
[1737008402910,0.4493,3371.7,3371.5,0.59329]
[1737008403112,0.4427,3371.9,3371.4,0.476]
[1737008403311,0.4427,3371.9,3371.8,0.59324]
[1737008404514,0.4427,3371.9,3371.7,0.59325]
[1737008405814,0.59324,3371.8,3371.6,0.59327]
[1737008406215,1.03593,3371.9,3371.6,0.59327]
[1737008406516,0.59324,3371.8,3371.6,0.59327]
[1737008406720,1.03593,3371.9,3371.6,0.59327]
[1737008407213,1.03593,3371.9,3371.7,0.59325]
[1737008408815,1.03593,3371.9,3371.4,0.476]
[1737008409008,1.03593,3371.9,3371.6,0.59326]
[1737008410117,1.03593,3371.9,3371.4,0.476]
[1737008410320,1.03593,3371.9,3371.7,0.59326]
[1737008412620,0.4427,3371.9,3371.7,0.59325]
[1737008412820,1.03592,3371.9,3371.7,0.59325]
[1737008413529,1.03592,3371.9,3371.4,5.11614081]
[1737008413731,0.4509,3371.8,3371.4,5.11614081]
[1737008413935,3.2078,3371.7,3371.4,4.64014081]
[1737008414128,0.59329,3371.5,3371.4,4.64014081]
[1737008415233,0.59329,3371.5,3371.2,0.59334]
[1737008415536,0.4903,3371.4,3371.2,0.59334]
[1737008416532,0.4903,3371.4,3371.1,46.59514081]
[1737008416533,0.4903,3371.4,3371.3,0.59333]
[1737008420732,0.4903,3371.4,3371.2,0.4471]
[1737008420929,0.4903,3371.4,3371.3,0.59333]
[1737008421131,1.08363,3371.4,3371.2,0.59333]
[1737008421331,0.4903,3371.4,3371.1,46.59514081]
[1737008421631,1.08361,3371.4,3371.2,0.59335]
[1737008423238,0.59336,3371.1,3371.0,4.64014081]
[1737008424037,0.5934,3370.9,3370.8,40.8]
[1737008424233,0.4722,3371.0,3370.6,4.64014081]
[1737008424435,0.481,3370.9,3370.6,4.64014081]
[1737008424637,1.07441,3370.9,3370.7,40.8]
[1737008425331,0.59342,3370.8,3370.6,0.59344]
[1737008425737,0.481,3370.9,3370.5,40.8]
[1737008425942,0.59344,3370.7,3370.5,40.8]
[1737008426136,0.59342,3370.8,3370.5,40.8]
[1737008426336,0.4676,3370.6,3370.5,40.8]
[1737008426741,0.4676,3370.6,3370.5,41.39347]
[1737008427242,0.59347,3370.5,3370.4,4.64014081]
[1737008427436,0.59349,3370.4,3370.3,4.64014081]
[1737008428537,0.59349,3370.4,3370.1,0.59354]
[1737008428836,0.59354,3370.1,3370.0,3.2078]
[1737008430241,0.59353,3370.2,3370.0,3.2078]
[1737008430741,0.4447,3370.1,3370.0,3.2078]
[1737008431040,1.03824,3370.1,3369.9,0.4538]
[1737008431442,0.4447,3370.1,3369.9,1.04737]
[1737008433242,1.03824,3370.1,3370.0,40.8]
[1737008433447,0.4447,3370.1,3370.0,40.8]
[1737008433837,1.03824,3370.1,3370.0,40.8]
[1737008434437,0.4447,3370.1,3370.0,40.8]
[1737008434837,1.03824,3370.1,3370.0,40.8]
[1737008435848,1.03824,3370.1,3369.9,0.4538]
[1737008436245,1.03824,3370.1,3369.9,41.2538]
[1737008436447,1.03825,3370.1,3369.9,41.2538]
[1737008437343,3.6823,3370.3,3370.1,0.59353]
[1737008438247,3.6823,3370.3,3369.9,41.2538]
[1737008438448,3.6823,3370.3,3370.2,0.59352]
[1737008438850,3.6823,3370.3,3370.0,0.4565]
[1737008439147,0.4761,3370.7,3370.4,0.59348]
[1737008439148,4.27734,3370.7,3370.4,0.59348]
[1737008439450,3.6839,3370.7,3370.6,0.59345]
[1737008440049,3.2078,3370.7,3370.6,0.59345]
[1737008440551,3.2078,3370.7,3370.5,1.53746]
[1737008440752,3.2078,3370.7,3370.6,0.59345]
[1737008441050,1.03811,3370.9,3370.6,0.59345]
[1737008441253,0.4447,3370.9,3370.8,0.59342]
[1737008442648,0.4447,3370.9,3370.7,0.59343]
[1737008444047,0.4447,3370.9,3370.6,0.4491]
[1737008444247,1.03811,3370.9,3370.6,1.04254]
[1737008444651,0.59343,3370.7,3370.5,1.53746]
[1737008445251,0.59343,3370.7,3370.5,0.944]
[1737008445549,0.59343,3370.7,3370.5,1.53746]
[1737008445850,1.06722,3370.8,3370.5,1.53746]
[1737008446151,0.4447,3370.9,3370.5,0.944]
[1737008446654,0.59343,3370.8,3370.5,1.53747]
[1737008448454,0.59344,3370.7,3370.5,1.53747]
[1737008448754,0.4447,3370.9,3370.5,0.944]
[1737008449054,0.59345,3370.6,3370.5,0.944]
[1737008451354,0.4447,3370.9,3370.5,0.944]
[1737008451957,3.2078,3371.1,3370.5,0.944]
[1737008452161,0.59338,3371.0,3370.6,0.4581]
[1737008452360,3.80117,3371.1,3370.8,0.59341]
[1737008452751,3.80117,3371.1,3370.9,0.5934]
[1737008452954,3.2078,3371.6,3371.0,6.00846347]
[1737008453147,0.59329,3371.5,3371.3,0.59333]
[1737008453350,3.6596,3371.6,3371.2,0.4587]
[1737008453653,3.6596,3371.6,3371.3,0.59332]
[1737008453654,3.80108,3371.6,3371.3,0.59332]
[1737008453959,3.80108,3371.6,3371.4,0.59331]
[1737008454251,3.2078,3371.6,3371.5,0.59329]
[1737008455053,3.2078,3371.6,3371.2,41.2587]
[1737008455656,3.2078,3371.6,3371.4,0.5933]
[1737008455953,3.80108,3371.6,3371.4,0.5933]
[1737008456356,3.2078,3371.6,3371.4,0.5933]
[1737008456554,3.2078,3371.6,3371.2,41.2587]
[1737008456753,3.80108,3371.6,3371.3,0.59331]
[1737008457058,3.80108,3371.6,3371.2,41.2587]
[1737008457260,3.2078,3371.6,3371.4,0.59331]
[1737008457960,3.80108,3371.6,3371.4,0.59331]
[1737008458459,3.2078,3371.6,3371.4,0.59331]
[1737008458661,0.59327,3371.7,3371.4,0.59331]
[1737008458859,3.6596,3372.0,3371.2,41.2587]
[1737008459160,0.59325,3371.8,3371.5,0.59329]
[1737008459357,0.59325,3371.8,3371.6,0.4802]
[1737008459856,0.59325,3371.8,3371.7,0.466]
[1737008461655,2.93301347,3371.8,3371.7,0.466]
[1737008461856,0.59329,3371.5,3371.4,3.2078]
[1737008463860,0.59328,3371.6,3371.4,3.8011]
[1737008464164,0.59328,3371.6,3371.4,3.2078]
[1737008464556,0.59327,3371.6,3371.4,3.2078]
[1737008464756,0.59325,3371.8,3371.5,0.59328]
[1737008464958,0.59325,3371.8,3371.6,1.04017]
[1737008465159,0.59325,3371.8,3371.6,0.4469]
[1737008465461,0.59325,3371.8,3371.7,0.4694]
[1737008468164,0.59323,3371.9,3371.7,0.4694]
[1737008468361,0.4518,3372.0,3371.7,0.4694]
[1737008468558,0.59322,3371.9,3371.7,0.4694]
[1737008469562,0.4518,3372.0,3371.7,0.4694]
[1737008469563,0.59324,3371.8,3371.7,0.4694]
[1737008476574,0.59323,3371.9,3371.7,1.06266]
[1737008476877,0.59324,3371.8,3371.7,0.4694]
[1737008479979,0.4518,3372.0,3371.7,0.4694]
[1737008480172,0.59323,3371.9,3371.7,1.06266]
[1737008480876,0.59324,3371.8,3371.7,0.4694]
[1737008482475,0.59323,3371.9,3371.7,1.06265]
[1737008482676,0.59324,3371.8,3371.7,0.4694]
[1737008485182,0.59324,3371.8,3371.7,1.06266]
[1737008485684,0.4518,3372.0,3371.9,0.59322]
[1737008485876,4.2663,3372.1,3371.7,3.6772]
[1737008486079,3.801,3372.1,3371.7,4.1428]
[1737008486382,3.801,3372.1,3371.9,0.59321]
[1737008486680,3.2078,3372.1,3371.7,4.1428]
[1737008486879,0.59315,3372.4,3372.2,0.59317]
[1737008487178,0.59315,3372.4,3372.3,0.4503]
[1737008487375,0.59313,3372.5,3372.3,1.04345]
[1737008487683,0.59313,3372.4,3372.3,0.4503]
[1737008489481,0.59312,3372.5,3372.3,1.04345]
[1737008489975,1.4123,3372.6,3372.3,0.4503]
[1737008489976,0.59313,3372.4,3372.3,0.4503]
[1737008491179,1.4123,3372.6,3372.3,0.4503]
[1737008491381,0.59305,3372.9,3372.3,0.4503]
[1737008491686,3.2078,3373.0,3372.5,0.59311]
[1737008491990,3.2078,3373.0,3372.6,1.154]
[1737008491991,0.59308,3372.7,3372.6,1.154]
[1737008493676,0.451,3372.8,3372.4,41.39313]
[1737008493882,1.06601,3372.6,3372.5,1.154]
[1737008494888,0.4729,3372.6,3372.5,1.74712]
[1737008498182,0.9315,3372.6,3372.5,1.74712]
[1737008500185,0.9315,3372.6,3372.3,41.2503]
[1737008500487,0.59313,3372.5,3372.3,2.19745]
[1737008500883,0.59314,3372.4,3372.2,41.39317]
[1737008501080,0.9315,3372.6,3372.2,41.39317]
[1737008501081,0.4886,3372.3,3372.2,41.39317]
[1737008502992,0.4886,3372.3,3372.2,40.8]
[1737008503381,0.4886,3372.3,3372.2,41.39317]
[1737008511685,0.4886,3372.3,3372.1,4.95498]
[1737008511886,0.4438,3372.2,3372.1,3.80098]
[1737008512185,0.4438,3372.2,3372.1,41.39318]
[1737008512995,3.6664,3372.6,3372.5,0.59312]
[1737008513494,0.8976,3372.8,3372.7,0.59308]
[1737008514593,3.6549,3373.1,3372.4,0.4865]
[1737008514786,4.5731,3373.1,3373.0,0.59303]
[1737008514987,4.5731,3373.1,3372.4,0.4865]
[1737008515493,0.59305,3372.9,3372.5,0.59312]
[1737008515694,0.59305,3372.9,3372.6,0.59308]
[1737008516087,0.59304,3373.0,3372.7,0.59307]
[1737008520999,0.59305,3372.9,3372.7,0.59307]
[1737008521388,4.5731,3373.1,3372.4,0.4865]
[1737008521590,0.59304,3373.0,3372.7,0.59307]
[1737008521790,5.16612,3373.1,3372.8,0.59305]
[1737008521994,4.5731,3373.1,3372.9,1.06264]
[1737008522201,4.126,3373.1,3373.0,0.59303]
[1737008522395,4.126,3373.1,3373.0,1.06413]
[1737008522995,3.6522,3373.1,3373.0,1.06413]
[1737008523197,3.2078,3373.1,3373.0,1.06413]
[1737008523394,4.1663,3373.8,3373.6,0.59292]
[1737008523595,3.6825,3373.8,3373.4,1.153]
[1737008523796,3.6825,3373.8,3373.5,1.05494133]
[1737008523992,3.6825,3373.8,3373.7,0.59291]
[1737008525096,3.6825,3373.8,3373.5,42.34454133]
[1737008525302,3.6825,3373.8,3373.7,0.59291]
[1737008526903,0.4747,3373.8,3373.7,0.59291]
[1737008532809,0.4747,3373.8,3373.6,0.4892]
[1737008533107,0.4747,3373.8,3373.7,0.59291]
[1737008533805,0.4747,3373.8,3373.5,0.4896]
[1737008534002,0.4747,3373.8,3373.5,1.08253]
[1737008534306,0.4908,3373.7,3373.5,1.08253]
[1737008535603,0.4908,3373.7,3373.5,0.4896]
[1737008537505,0.4908,3373.7,3373.4,40.8]
[1737008537710,1.06562,3373.6,3373.3,4.95376]
[1737008538208,1.06562,3373.6,3373.4,40.8]
[1737008538708,0.4727,3373.6,3373.4,40.8]
[1737008539609,0.4727,3373.6,3373.5,0.59294]
[1737008539808,0.4727,3373.6,3373.4,40.8]
[1737008539809,0.4727,3373.6,3373.4,41.39295]
[1737008541213,0.4727,3373.6,3373.5,0.59294]
[1737008541408,0.4727,3373.6,3373.5,1.04534]
[1737008541711,0.4908,3373.7,3373.6,0.59292]
[1737008542208,3.2078,3374.1,3373.5,2.78987213]
[1737008542410,0.9728,3374.2,3373.7,3.2078]
[1737008542610,3.2078,3374.5,3374.3,0.59279]
[1737008542805,3.2078,3374.5,3374.4,0.59278]
[1737008543007,3.2078,3374.5,3374.3,0.59279]
[1737008544414,3.2078,3374.5,3374.2,0.59281]
[1737008544610,3.2078,3374.5,3374.3,0.5928]
[1737008547021,3.2078,3374.5,3374.1,4.3608]
[1737008547214,3.80057,3374.5,3374.2,0.59281]
[1737008547513,3.2078,3374.5,3374.1,4.3608]
[1737008547718,0.59279,3374.4,3374.1,4.3608]
[1737008548217,3.666,3374.5,3374.1,4.95363]
[1737008548417,4.25877,3374.5,3374.1,4.95363]
[1737008549310,5.31330715,3374.5,3374.1,4.95363]
[1737008550821,0.59278,3374.4,3374.1,4.95363]
[1737008551021,5.31330715,3374.5,3374.1,4.95363]
[1737008551522,1.05453715,3374.3,3374.1,4.3608]
[1737008552419,0.59282,3374.2,3374.1,4.3608]
[1737008554922,0.59282,3374.2,3374.1,3.2078]
[1737008555828,1.05453715,3374.3,3373.8,1.74888]
[1737008556132,1.50863715,3374.1,3373.9,0.59287]
[1737008559129,0.4578,3374.0,3373.9,0.59287]
[1737008562531,0.4502,3374.4,3374.3,0.5928]
[1737008562924,0.4502,3374.4,3374.3,41.3928]
[1737008563122,0.4502,3374.4,3374.3,41.8821]
[1737008563929,3.2078,3374.5,3374.4,0.59278]
[1737008564331,3.2078,3374.9,3374.4,1.05453715]
[1737008564528,1.05453715,3374.7,3374.6,0.59273]
[1737008564736,3.2078,3374.9,3374.6,1.05453715]
[1737008564927,3.2078,3374.9,3374.8,0.59271]
[1737008566038,3.2078,3374.9,3374.6,1.05453715]
[1737008566333,3.2078,3374.9,3374.7,0.59273]
[1737008566533,1.05453715,3374.8,3374.5,41.956]
[1737008566735,1.05453715,3374.8,3374.7,0.59273]
[1737008566935,3.2078,3374.9,3374.8,0.59271]
[1737008569139,2.01763715,3375.0,3374.8,0.59271]
[1737008569747,2.01763715,3375.0,3374.7,0.59272]
[1737008571245,1.05453715,3374.8,3374.5,1.156]
[1737008571446,1.64728715,3374.6,3374.4,3.2078]
[1737008571746,0.9154,3374.5,3374.4,3.2078]
[1737008572147,1.3658,3374.5,3374.3,0.5928]
[1737008573254,1.05453715,3374.4,3374.2,1.156]
[1737008573443,1.05453715,3374.4,3374.2,1.74881]
[1737008573643,1.05453715,3374.4,3374.2,1.156]
[1737008574248,1.95858,3374.5,3374.2,1.156]
[1737008574542,1.3658,3374.5,3374.2,1.156]
[1737008574742,1.95857,3374.5,3374.2,1.156]
[1737008576650,1.3658,3374.5,3374.3,0.5928]
[1737008576850,1.3658,3374.5,3374.2,1.74881]
[1737008577445,1.3658,3374.5,3374.3,1.05453715]
[1737008577754,1.95857,3374.5,3374.3,1.05453715]
[1737008579348,1.3658,3374.5,3374.3,1.05453715]
[1737008579852,1.95857,3374.5,3374.3,1.05453715]
[1737008580642,0.59278,3374.4,3374.3,1.05453715]
[1737008580847,0.59278,3374.4,3374.2,1.156]
[1737008581050,1.95857,3374.5,3374.2,1.74881]
[1737008582542,1.95857,3374.5,3374.2,1.156]
[1737008582745,1.95857,3374.5,3374.2,1.74881]
[1737008583555,1.95857,3374.5,3374.3,1.05453715]
[1737008586054,1.3658,3374.5,3374.3,1.05453715]
[1737008586557,1.3658,3374.5,3374.3,1.64732715]
[1737008587058,1.3658,3374.5,3374.3,1.05453715]
[1737008588355,0.59272,3374.8,3374.3,1.05453715]
[1737008588551,0.59272,3374.8,3374.5,1.64728715]
[1737008588757,0.59272,3374.8,3374.6,40.8]
[1737008588953,0.59272,3374.8,3374.6,41.2607]
[1737008589254,0.59271,3374.8,3374.6,41.2607]
[1737008589553,2.01663715,3374.9,3374.6,0.4607]
[1737008589747,0.59273,3374.7,3374.6,0.4607]
[1737008590949,0.59273,3374.7,3374.4,0.59278]
[1737008591156,0.4542,3374.6,3374.4,41.84348]
[1737008591459,0.4542,3374.6,3374.5,0.59276]
[1737008592762,0.4542,3374.6,3374.4,0.4507]
[1737008592960,1.04695,3374.6,3374.4,41.84347]
[1737008593157,1.04695,3374.6,3374.4,1.04347]
[1737008593357,0.4542,3374.6,3374.4,1.04347]
[1737008595664,0.4542,3374.6,3374.5,1.05453715]
[1737008596664,0.4542,3374.6,3374.4,1.04347]
[1737008598463,0.4542,3374.6,3374.5,1.05453715]
[1737008598660,0.59273,3374.7,3374.5,1.05453715]
[1737008598861,0.59273,3374.7,3374.5,0.4466]
[1737008600559,3.2078,3375.0,3374.5,1.50113715]
[1737008600866,3.2078,3375.0,3374.8,1.64723715]
[1737008601360,3.2078,3375.0,3374.9,1.07889]
[1737008601558,3.2078,3375.0,3374.9,0.4862]
[1737008601757,3.2078,3375.0,3374.9,1.07889]
[1737008602159,0.59263,3375.3,3375.1,0.59265]
[1737008602459,5.81555715,3375.4,3375.1,0.59265]
[1737008603362,5.22293715,3375.4,3375.0,0.4644]
[1737008603560,0.59262,3375.3,3375.0,1.05706]
[1737008603758,0.59266,3375.1,3375.0,0.4644]
[1737008604059,1.05453715,3375.2,3375.0,0.4644]
[1737008604259,1.64718715,3375.2,3375.0,0.4644]